fUSD/lending_fUSD_20240220
["ID","MTS","AMOUNT","RATE_DAILY","PERIOD"]
[314576965,1708432232573,-1124.6592447,0.00035252,2]
[314576966,1708432232582,-1452.3764822,0.00035307,2]
[314576967,1708432232592,-711.496,0.00035345,2]
[314576968,1708432232603,-954.0,0.00035345,2]
[314576969,1708432232613,-843.0,0.00035345,2]
[314576970,1708432232622,-729.47935226,0.000354,2]
[314576971,1708432232638,-1038.0,0.00035345,2]
[314576972,1708432232649,-1791.2,0.000354,2]
[314576977,1708432232685,-846.95454774,0.000354,2]
[314576979,1708432232695,-32.80643284,0.000354,2]
[314576981,1708432232707,-316.75833239,0.000354,2]
[314577107,1708432238235,-379.67,0.00033262,2]
[314577108,1708432238244,-246.35873637,0.000354,2]
[314577109,1708432238256,-273.05453044,0.000354,2]
[314577110,1708432238268,-342.82992223,0.000354,2]
[314577111,1708432238280,-526.62122345,0.000354,2]
[314577112,1708432238297,-2777.42372228,0.000354,2]
[314577113,1708432238306,-38.23463664,0.000354,2]
[314577114,1708432238319,-428.32625124,0.000354,2]
[314577115,1708432238351,-894.37127551,0.000354,2]
[314577116,1708432238414,-306.979227,0.000354,2]
[314577117,1708432238425,-1000.00663,0.000354,2]
[314577118,1708432238495,-998.58866219,0.000354,2]
[314577119,1708432238537,-16.60211742,0.000354,2]
[314577120,1708432238547,-1000.0,0.00035411,2]
[314577121,1708432238557,-1475.26,0.00035458,2]
[314577122,1708432238566,-1432.26,0.00035458,2]
[314577123,1708432238575,-1460.57,0.00035458,2]
[314577124,1708432238584,-233.94,0.0003549,10]
[314577125,1708432238593,-482.54201391,0.00035498,4]
[314577126,1708432238602,-1216.44831665,0.00035498,4]
[314577127,1708432238613,-396.32847374,0.00035498,4]
[314577128,1708432238622,-156.20317491,0.00035498,4]
[314577129,1708432238631,-223.62460597,0.00035498,4]
[314577130,1708432238641,-309.66895379,0.00035499,4]
[314577131,1708432238650,-1348.50689831,0.00035499,4]
[314577132,1708432238660,-11197.06818802,0.000355,2]
[314577133,1708432238671,-464.205,0.000355,2]
[314577134,1708432238682,-539.82192465,0.000355,2]
[314577135,1708432238694,-361.28072426,0.000355,2]
[314577136,1708432238706,-4089.11401471,0.000355,2]
[314577137,1708432238717,-1069.5,0.000355,2]
[314577138,1708432238729,-10980.70876942,0.000355,2]
[314577140,1708432240805,-1045.9,0.00035345,2]
[314577141,1708432240819,-905.1,0.00035345,2]
[314577142,1708432240829,-1256.0,0.00035345,2]
[314577143,1708432240838,-13500.05651718,0.000355,2]
[314577144,1708432240850,-365.49689089,0.000355,2]
[314577145,1708432240868,-906.25999723,0.000355,2]
[314577146,1708432240880,-14383.86682473,0.000355,2]
[314577147,1708432240916,-17113.57106126,0.000355,2]
[314577148,1708432240928,-702.03474078,0.000355,2]
[314577149,1708432240958,-4720.6272777,0.000355,2]
[314577150,1708432240969,-1104.43424814,0.000355,2]
[314577151,1708432240981,-1145.10809719,0.000355,2]
[314577152,1708432240993,-854.44252208,0.000355,2]
[314577153,1708432241004,-590.29,0.000355,2]
[314577154,1708432241016,-250.5,0.000355,2]
[314577155,1708432241027,-899.0056698,0.000355,2]
[314577156,1708432241038,-468.67992952,0.000355,2]
[314577157,1708432241049,-1153.91591184,0.000355,2]
[314577158,1708432241656,-25626.68404768,0.000355,2]
[314577159,1708432241666,-3376.59438812,0.000355,15]
[314577160,1708432241676,-3000.0,0.000355,2]
[314577161,1708432241686,-194.95,0.00035501,10]
[314577162,1708432241695,-100000.0,0.00035511,2]
[314577163,1708432241705,-551.90689057,0.00035516,7]
[314577164,1708432241714,-379.67,0.00035525,2]
[314577165,1708432241723,-3435.53354441,0.00035538,2]
[314577166,1708432241735,-253.94,0.00035611,2]
[314577167,1708432241744,-374.10759195,0.00035616,2]
[314577168,1708432241754,-318.37647054,0.00035616,2]
[314577169,1708432241762,-213.16702277,0.00035616,2]
[314577170,1708432241772,-500.0,0.00035616,2]
[314577171,1708432241782,-500.0,0.00035616,2]
[314577172,1708432241791,-500.0,0.00035616,2]
[314577173,1708432241800,-521.53053923,0.00035616,2]
[314577174,1708432241811,-498.77037562,0.00035616,2]
[314577175,1708432241820,-520.03902443,0.00035616,2]
[314577176,1708432241829,-500.0,0.00035616,2]
[314577177,1708432241838,-354.06147054,0.00035616,2]
[314577178,1708432241847,-510.19248515,0.00035616,2]
[314577179,1708432241857,-501.01106843,0.00035616,2]
[314577180,1708432241866,-500.0,0.00035616,2]
[314577181,1708432241876,-500.0,0.00035616,2]
[314577182,1708432241885,-508.79896018,0.00035616,2]
[314577183,1708432241894,-516.50611236,0.00035616,2]
[314577185,1708432241904,-500.0,0.00035616,2]
[314577187,1708432241913,-218.23859595,0.00035616,2]
[314577188,1708432241923,-500.0,0.00035616,2]
[314577189,1708432241932,-391.2440641,0.00035616,2]
[314577190,1708432241942,-468.81738928,0.00035616,2]
[314577191,1708432241951,-500.0,0.00035616,2]
[314577192,1708432241961,-500.0,0.00035616,2]
[314577193,1708432241969,-500.0,0.00035616,2]
[314577194,1708432241979,-500.0,0.00035616,2]
[314577195,1708432241988,-500.0,0.00035616,2]
[314577196,1708432241997,-500.0,0.00035616,2]
[314577197,1708432242007,-500.0,0.00035616,2]
[314577198,1708432242016,-500.0,0.00035616,2]
[314577199,1708432242025,-338.26,0.00035616,2]
[314577200,1708432242035,-500.0,0.00035616,2]
[314577201,1708432242044,-500.0,0.00035616,2]
[314577202,1708432242054,-500.0,0.00035616,2]
[314577203,1708432242063,-532.15458845,0.00035616,2]
[314577204,1708432242072,-500.0,0.00035616,2]
[314577205,1708432242081,-228.09230357,0.00035616,2]
[314577206,1708432242091,-500.0,0.00035616,2]
[314577207,1708432242100,-500.0,0.00035616,2]
[314577208,1708432242110,-500.0,0.00035616,2]
[314577209,1708432242120,-579.34357023,0.00035616,2]
[314577210,1708432242130,-500.0,0.00035616,2]
[314577211,1708432242139,-500.0,0.00035616,2]
[314577212,1708432242148,-500.0,0.00035616,2]
[314577213,1708432242159,-500.0,0.00035616,2]
[314577214,1708432242169,-500.0,0.00035616,2]
[314577215,1708432242178,-500.0,0.00035616,2]
[314577216,1708432242187,-473.4040225,0.00035616,2]
[314577217,1708432242197,-500.0,0.00035616,2]
[314577218,1708432242206,-500.0,0.00035616,2]
[314577219,1708432242215,-500.0,0.00035616,2]
[314577220,1708432242225,-570.56386932,0.00035616,2]
[314577221,1708432242234,-500.0,0.00035616,2]
[314577222,1708432242244,-500.0,0.00035616,2]
[314577223,1708432242253,-443.26328416,0.00035616,2]
[314577224,1708432242263,-500.0,0.00035616,2]
[314577225,1708432242272,-500.0,0.00035616,2]
[314577226,1708432242282,-500.0,0.00035616,2]
[314577227,1708432242292,-500.0,0.00035616,2]
[314577228,1708432242301,-500.0,0.00035616,2]
[314577229,1708432242310,-500.0,0.00035616,2]
[314577230,1708432242319,-500.0,0.00035616,2]
[314577231,1708432242330,-500.0,0.00035616,2]
[314577232,1708432242339,-500.0,0.00035616,2]
[314577233,1708432242348,-533.74021359,0.00035616,2]
[314577234,1708432242358,-500.0,0.00035616,2]
[314577235,1708432242367,-500.0,0.00035616,2]
[314577236,1708432242376,-500.0,0.00035616,2]
[314577237,1708432242386,-500.0,0.00035616,2]
[314577238,1708432242395,-500.0,0.00035616,2]
[314577239,1708432242405,-500.0,0.00035616,2]
[314577240,1708432242414,-500.0,0.00035616,2]
[314577241,1708432242423,-500.0,0.00035616,2]
[314577242,1708432242433,-500.0,0.00035616,2]
[314577243,1708432242442,-586.04,0.00035616,2]
[314577244,1708432242451,-500.0,0.00035616,2]
[314577245,1708432242461,-225.21266958,0.00035616,2]
[314577246,1708432242470,-500.0,0.00035616,2]
[314577247,1708432242479,-641.20174411,0.00035616,2]
[314577248,1708432242489,-500.0,0.00035616,2]
[314577249,1708432242498,-500.0,0.00035616,2]
[314577250,1708432242507,-500.0,0.00035616,2]
[314577251,1708432242516,-500.0,0.00035616,2]
[314577252,1708432242525,-500.0,0.00035616,2]
[314577253,1708432242534,-500.0,0.00035616,2]
[314577254,1708432242543,-500.0,0.00035616,2]
[314577255,1708432242553,-500.0,0.00035616,2]
[314577256,1708432242562,-500.0,0.00035616,2]
[314577257,1708432242571,-500.0,0.00035616,2]
[314577258,1708432242580,-500.0,0.00035616,2]
[314577259,1708432242590,-500.0,0.00035616,2]
[314577260,1708432242599,-500.0,0.00035616,2]
[314577261,1708432242609,-500.0,0.00035616,2]
[314577262,1708432242618,-581.92854167,0.00035616,2]
[314577263,1708432242626,-8402.08,0.00035616,2]
[314577264,1708432242636,-500.0,0.00035616,2]
[314577265,1708432242645,-500.0,0.00035616,2]
[314577266,1708432242655,-500.0,0.00035616,2]
[314577267,1708432242664,-500.0,0.00035616,2]
[314577268,1708432242674,-474.44425515,0.00035616,2]
[314577269,1708432242683,-500.0,0.00035616,2]
[314577270,1708432242692,-500.0,0.00035616,2]
[314577271,1708432242701,-500.0,0.00035616,2]
[314577272,1708432242711,-500.0,0.00035616,2]
[314577273,1708432242721,-500.0,0.00035616,2]
[314577274,1708432242730,-500.0,0.00035616,2]
[314577275,1708432242742,-500.0,0.00035616,2]
[314577276,1708432242752,-500.0,0.00035616,2]
[314577277,1708432242762,-500.0,0.00035616,2]
[314577278,1708432242773,-500.0,0.00035616,2]
[314577279,1708432242782,-500.0,0.00035616,2]
[314577280,1708432242791,-500.0,0.00035616,2]
[314577281,1708432242800,-500.0,0.00035616,2]
[314577282,1708432242811,-569.17281001,0.00035616,2]
[314577283,1708432242821,-500.0,0.00035616,2]
[314577284,1708432242831,-500.0,0.00035616,2]
[314577285,1708432242841,-500.0,0.00035616,2]
[314577286,1708432242851,-500.0,0.00035616,2]
[314577287,1708432242861,-500.0,0.00035616,2]
[314577288,1708432242871,-500.0,0.00035616,2]
[314577289,1708432242881,-500.0,0.00035616,2]
[314577290,1708432242891,-500.0,0.00035616,2]
[314577291,1708432242901,-500.0,0.00035616,2]
[314577292,1708432242910,-500.0,0.00035616,2]
[314577293,1708432242921,-500.0,0.00035616,2]
[314577294,1708432242930,-500.0,0.00035616,2]
[314577295,1708432242940,-500.0,0.00035616,2]
[314577296,1708432242950,-500.0,0.00035616,2]
[314577297,1708432242959,-500.0,0.00035616,2]
[314577298,1708432242968,-500.0,0.00035616,2]
[314577299,1708432242977,-500.0,0.00035616,2]
[314577300,1708432242986,-500.0,0.00035616,2]
[314577301,1708432242995,-500.0,0.00035616,2]
[314577302,1708432243005,-557.75,0.00035616,2]
[314577303,1708432243014,-500.0,0.00035616,2]
[314577304,1708432243024,-500.0,0.00035616,2]
[314577305,1708432243033,-500.0,0.00035616,2]
[314577306,1708432243042,-171.70373015,0.00035616,2]
[314577307,1708432243051,-500.0,0.00035616,2]
[314577308,1708432243060,-500.0,0.00035616,2]
[314577309,1708432243069,-500.0,0.00035616,2]
[314577310,1708432243079,-500.0,0.00035616,2]
[314577311,1708432243088,-500.0,0.00035616,2]
[314577312,1708432243097,-500.0,0.00035616,2]
[314577313,1708432243106,-500.0,0.00035616,2]
[314577314,1708432243116,-500.0,0.00035616,2]
[314577315,1708432243125,-500.0,0.00035616,2]
[314577316,1708432243134,-500.0,0.00035616,2]
[314577317,1708432243144,-1000.0,0.00035616,7]
[314577318,1708432243153,-500.0,0.00035616,2]
[314577319,1708432243162,-500.0,0.00035616,2]
[314577321,1708432243172,-500.0,0.00035616,2]
[314577322,1708432243181,-500.0,0.00035616,2]
[314577323,1708432243190,-500.0,0.00035616,2]
[314577324,1708432243199,-500.0,0.00035616,2]
[314577325,1708432243208,-500.0,0.00035616,2]
[314577326,1708432243217,-500.0,0.00035616,2]
[314577327,1708432243227,-500.0,0.00035616,2]
[314577328,1708432243236,-605.17217558,0.00035616,2]
[314577329,1708432243245,-500.0,0.00035616,2]
[314577330,1708432243255,-500.0,0.00035616,2]
[314577331,1708432243264,-500.0,0.00035616,2]
[314577332,1708432243273,-500.0,0.00035616,2]
[314577333,1708432243282,-500.0,0.00035616,2]
[314577335,1708432243291,-500.0,0.00035616,2]
[314577337,1708432243300,-500.0,0.00035616,2]
[314577339,1708432243309,-500.0,0.00035616,2]
[314577340,1708432243318,-500.0,0.00035616,2]
[314577342,1708432243327,-500.0,0.00035616,2]
[314577344,1708432243336,-513.72277558,0.00035616,2]
[314577346,1708432243346,-500.0,0.00035616,2]
[314577348,1708432243356,-500.0,0.00035616,2]
[314577350,1708432243365,-500.0,0.00035616,2]
[314577351,1708432243375,-500.0,0.00035616,2]
[314577352,1708432243384,-500.0,0.00035616,2]
[314577353,1708432243393,-500.0,0.00035616,2]
[314577354,1708432243402,-500.0,0.00035616,2]
[314577355,1708432243411,-500.0,0.00035616,2]
[314577356,1708432243421,-500.0,0.00035616,2]
[314577357,1708432243430,-277.55719654,0.00035616,2]
[314577358,1708432243439,-500.0,0.00035616,2]
[314577359,1708432243448,-526.30807398,0.00035616,2]
[314577360,1708432243457,-500.0,0.00035616,2]
[314577361,1708432243467,-500.0,0.00035616,2]
[314577362,1708432243476,-500.0,0.00035616,2]
[314577363,1708432243485,-500.0,0.00035616,2]
[314577364,1708432243495,-288.3,0.00035616,4]
[314577365,1708432243504,-1452.3764822,0.00035693,2]
[314577366,1708432243513,-1124.6592447,0.00035764,2]
[314577367,1708432243522,-194.96,0.00035798,2]
[314577368,1708432243531,-500.0,0.0003589,2]
[314577369,1708432243541,-500.0,0.0003589,2]
[314577370,1708432243550,-241.09693493,0.0003589,2]
[314577371,1708432243560,-521.88108209,0.0003589,2]
[314577372,1708432243569,-534.89122222,0.0003589,2]
[314577373,1708432243578,-510.41499359,0.0003589,2]
[314577374,1708432243587,-500.0,0.0003589,2]
[314577375,1708432243597,-500.0,0.0003589,2]
[314577376,1708432243607,-500.0,0.0003589,2]
[314577377,1708432243616,-500.0,0.0003589,2]
[314577378,1708432243626,-500.0,0.0003589,2]
[314577379,1708432243635,-509.79,0.0003589,2]
[314577380,1708432243645,-249.37,0.0003589,2]
[314577381,1708432243655,-500.0,0.0003589,2]
[314577383,1708432243664,-500.0,0.0003589,2]
[314577384,1708432243674,-500.0,0.0003589,2]
[314577385,1708432243683,-647.58,0.0003589,2]
[314577386,1708432243692,-524.07,0.0003589,2]
[314577387,1708432243701,-8402.08,0.0003589,2]
[314577388,1708432243710,-462.24,0.0003589,2]
[314577389,1708432243721,-500.0,0.0003589,2]
[314577390,1708432243733,-500.0,0.0003589,2]
[314577391,1708432243742,-500.0,0.0003589,2]
[314577392,1708432243752,-500.0,0.0003589,2]
[314577393,1708432243761,-500.0,0.0003589,2]
[314577394,1708432243770,-500.0,0.0003589,2]
[314577395,1708432243780,-500.0,0.0003589,2]
[314577396,1708432243790,-166.3,0.0003589,2]
[314577397,1708432243799,-242.37,0.0003589,2]
[314577398,1708432243809,-205.29,0.0003589,2]
[314577399,1708432243820,-500.0,0.0003589,2]
[314577400,1708432243830,-500.0,0.0003589,2]
[314577401,1708432243839,-500.0,0.0003589,2]
[314577402,1708432243849,-341.46542847,0.0003589,2]
[314577403,1708432243860,-557.75,0.0003589,2]
[314577404,1708432243870,-500.0,0.0003589,2]
[314577405,1708432243880,-500.0,0.0003589,2]
[314577406,1708432243890,-565.98,0.0003589,2]
[314577407,1708432243900,-331.00135467,0.0003589,2]
[314577408,1708432243909,-500.0,0.0003589,2]
[314577409,1708432243919,-500.0,0.0003589,2]
[314577410,1708432243929,-500.0,0.0003589,2]
[314577411,1708432243939,-500.0,0.0003589,2]
[314577412,1708432243948,-500.0,0.0003589,2]
[314577413,1708432243958,-500.0,0.0003589,2]
[314577414,1708432243967,-500.0,0.0003589,2]
[314577415,1708432243977,-500.0,0.0003589,2]
[314577416,1708432243986,-500.0,0.0003589,2]
[314577417,1708432243995,-500.0,0.0003589,2]
[314577418,1708432244004,-332.33,0.0003589,2]
[314577419,1708432244013,-6000.0,0.0003598,2]
[314577420,1708432244023,-500.5705688,0.00036,3]
[314577421,1708432244032,-154.44263269,0.00036164,2]
[314577422,1708432244041,-575.56719041,0.00036164,2]
[314577423,1708432244051,-500.0,0.00036164,2]
[314577424,1708432244060,-500.0,0.00036164,2]
[314577425,1708432244069,-500.0,0.00036164,2]
[314577426,1708432244078,-500.0,0.00036164,2]
[314577427,1708432244087,-500.0,0.00036164,2]
[314577428,1708432244096,-8402.08,0.00036164,2]
[314577429,1708432244106,-500.0,0.00036164,2]
[314577430,1708432244116,-270.51,0.00036164,2]
[314577431,1708432244125,-368.04,0.00036164,2]
[314577432,1708432244135,-500.0,0.00036164,2]
[314577433,1708432244144,-500.0,0.00036164,2]
[314577434,1708432244153,-500.0,0.00036164,2]
[314577435,1708432244163,-500.0,0.00036164,2]
[314577436,1708432244172,-557.75,0.00036164,2]
[314577437,1708432244181,-161.34,0.00036164,2]
[314577438,1708432244191,-500.0,0.00036164,2]
[314577439,1708432244201,-500.0,0.00036164,2]
[314577440,1708432244210,-500.0,0.00036164,2]
[314577441,1708432244219,-500.0,0.00036164,2]
[314577442,1708432244228,-500.0,0.00036164,2]
[314577443,1708432244237,-500.0,0.00036164,2]
[314577444,1708432244247,-449.41213487,0.00036164,2]
[314577445,1708432244256,-212.64,0.00036164,2]
[314577446,1708432244265,-42197.14469113,0.00036389,2]
[314577447,1708432244275,-500.0,0.00036438,2]
[314577448,1708432244284,-500.0,0.00036438,2]
[314577449,1708432244293,-500.0,0.00036438,2]
[314577450,1708432244302,-349.31,0.00036438,2]
[314577451,1708432244312,-500.0,0.00036438,2]
[314577452,1708432244321,-8402.08,0.00036438,2]
[314577453,1708432244330,-522.04636105,0.00036438,2]
[314577454,1708432244339,-500.0,0.00036438,2]
[314577455,1708432244349,-342.47,0.00036438,2]
[314577456,1708432244358,-500.0,0.00036438,2]
[314577457,1708432244367,-557.75,0.00036438,2]
[314577458,1708432244377,-500.0,0.00036438,2]
[314577459,1708432244386,-500.0,0.00036438,2]
[314577460,1708432244395,-500.0,0.00036438,2]
[314577461,1708432244404,-505.67,0.00036438,2]
[314577462,1708432244414,-500.0,0.00036438,2]
[314577463,1708432244423,-170.05,0.000366,2]
[314577464,1708432244433,-683.49331256,0.00036634,2]
[314577465,1708432244442,-440.50475966,0.00036712,2]
[314577466,1708432244452,-620.9521202,0.00036712,2]
[314577467,1708432244461,-383.65,0.00036712,2]
[314577468,1708432244470,-500.0,0.00036712,2]
[314577469,1708432244480,-8402.08,0.00036712,2]
[314577470,1708432244489,-500.0,0.00036712,2]
[314577471,1708432244499,-500.0,0.00036712,2]
[314577472,1708432244509,-557.75,0.00036712,2]
[314577473,1708432244518,-500.0,0.00036712,2]
[314577474,1708432244528,-500.0,0.00036712,2]
[314577475,1708432244538,-500.0,0.00036712,2]
[314577476,1708432244547,-500.0,0.00036712,2]
[314577477,1708432244556,-430.0,0.00036734,2]
[314577478,1708432244565,-859.0,0.00036734,2]
[314577479,1708432244575,-1006.0,0.00036734,2]
[314577480,1708432244585,-276.0,0.00036734,2]
[314577481,1708432244594,-1009.973,0.00036734,2]
[314577482,1708432244604,-150.0,0.00036734,2]
[314577483,1708432244615,-343.0,0.00036734,2]
[314577484,1708432244624,-2888.0,0.00036734,2]
[314577485,1708432244633,-321.0,0.00036734,2]
[314577486,1708432244642,-454.0,0.00036734,2]
[314577487,1708432244652,-189.445,0.00036734,2]
[314577488,1708432244661,-2291.0,0.00036734,2]
[314577489,1708432244671,-8169.0,0.00036734,2]
[314577490,1708432244681,-3018.388,0.00036734,2]
[314577491,1708432244691,-7133.147,0.00036734,2]
[314577492,1708432244700,-4098.0,0.00036734,2]
[314577493,1708432244710,-246.98,0.00036734,2]
[314577494,1708432244719,-2931.0,0.00036734,2]
[314577495,1708432244729,-2692.0,0.00036734,2]
[314577496,1708432244743,-19872.0,0.00036734,2]
[314577497,1708432244752,-150.182,0.00036763,2]
[314577498,1708432244762,-212.121,0.00036763,2]
[314577499,1708432244771,-206.393,0.00036763,2]
[314577500,1708432244781,-257.9237431,0.0003679,2]
[314577501,1708432244790,-8379.4417597,0.00036798,2]
[314577502,1708432244799,-57850.92513844,0.000368,2]
[314577503,1708432244808,-200.0,0.000369,11]
[314577504,1708432244818,-200.0,0.000369,2]
[314577505,1708432244827,-500.0,0.00036986,2]
[314577506,1708432244837,-8402.08,0.00036986,2]
[314577507,1708432244846,-500.0,0.00036986,2]
[314577508,1708432244855,-500.0,0.00036986,2]
[314577509,1708432244865,-557.75,0.00036986,2]
[314577510,1708432244875,-500.0,0.00036986,2]
[314577511,1708432244885,-500.0,0.00036986,2]
[314577512,1708432244895,-500.0,0.00036986,2]
[314577513,1708432244905,-615.43,0.00036986,2]
[314577514,1708432244915,-2944.44923753,0.00037,4]
[314577515,1708432244925,-13049.66,0.00037,2]
[314577516,1708432244934,-8379.4417597,0.00037,2]
[314577517,1708432244943,-42197.14469106,0.0003701,2]
[314577518,1708432244953,-151.0,0.00037042,7]
[314577519,1708432244962,-194.96,0.00037075,2]
[314577520,1708432244970,-153.73,0.00037122,2]
[314577521,1708432244980,-8402.08,0.0003726,2]
[314577522,1708432244989,-500.0,0.0003726,2]
[314577523,1708432244998,-500.0,0.0003726,2]
[314577524,1708432245007,-557.75,0.0003726,2]
[314577525,1708432245016,-500.0,0.0003726,2]
[314577526,1708432245025,-500.0,0.0003726,2]
[314577527,1708432245035,-551.90689055,0.00037294,8]
[314577528,1708432245044,-2000.0,0.000373,2]
[314577529,1708432245053,-173.36,0.00037353,2]
[314577530,1708432245063,-153.75,0.00037375,2]
[314577531,1708432245072,-156.08966048,0.00037385,2]
[314577532,1708432245082,-165.53,0.00037397,2]
[314577533,1708432245091,-200.0,0.000374,11]
[314577534,1708432245100,-8402.08,0.00037534,2]
[314577535,1708432245110,-167.52,0.00037534,2]
[314577536,1708432245119,-500.0,0.00037534,2]
[314577537,1708432245279,-557.75,0.00037534,2]
[314577538,1708432245289,-500.0,0.00037534,2]
[314577539,1708432245299,-500.0,0.00037534,2]
[314577540,1708432245308,-180.0,0.00037671,2]
[314577541,1708432245318,-2597.0,0.000377,3]
[314577542,1708432245327,-379.67,0.00037789,2]
[314577543,1708432245336,-151.0,0.00037798,4]
[314577544,1708432245345,-8402.08,0.00037808,2]
[314577545,1708432245355,-500.0,0.00037808,2]
[314577546,1708432245365,-557.75,0.00037808,2]
[314577547,1708432245374,-500.0,0.00037808,2]
[314577548,1708432245383,-500.0,0.00037808,2]
[314577549,1708432245393,-188.55770391,0.00037839,2]
[314577550,1708432245403,-666.0,0.00037864,2]
[314577551,1708432245414,-153.73,0.00037864,2]
[314577552,1708432245424,-890.02085863,0.00037898,2]
[314577553,1708432245434,-200.0,0.000379,12]
[314577554,1708432245444,-75780.463239,0.000379,3]
[314577555,1708432245452,-519.0,0.00038,2]
[314577556,1708432245462,-75780.463239,0.00038072,3]
[314577557,1708432245472,-8402.08,0.00038082,2]
[314577558,1708432245481,-500.0,0.00038082,2]
[314577559,1708432245492,-557.75,0.00038082,2]
[314577560,1708432245501,-500.0,0.00038082,2]
[314577561,1708432245511,-500.0,0.00038082,2]
[314577562,1708432245520,-205.0,0.00038094,2]
[314577563,1708432245530,-163.54,0.00038166,2]
[314577564,1708432245540,-683.49331237,0.00038213,2]
[314577565,1708432245549,-909.28,0.0003825,2]
[314577566,1708432245559,-954.0,0.00038345,2]
[314577567,1708432245568,-839.0,0.00038345,2]
[314577568,1708432245579,-1038.0,0.00038345,2]
[314577569,1708432245588,-1951.0,0.00038345,2]
[314577570,1708432245598,-1256.0,0.00038345,2]
[314577571,1708432245607,-194.96,0.00038352,2]
[314577572,1708432245617,-8402.08,0.00038356,2]
[314577573,1708432245627,-500.0,0.00038356,2]
[314577574,1708432245636,-557.75,0.00038356,2]
[314577575,1708432245646,-500.0,0.00038356,2]
[314577576,1708432245656,-500.0,0.00038356,2]
[314577577,1708432245665,-150.0,0.00038356,2]
[314577578,1708432245675,-4000.0,0.00038356,30]
[314577579,1708432245685,-200.0,0.000384,13]
[314577580,1708432245694,-151.0,0.0003857,2]
[314577581,1708432245703,-8379.4417597,0.000386,2]
[314577582,1708432245713,-153.73,0.00038607,2]
[314577583,1708432245722,-42197.14469106,0.00038609,2]
[314577584,1708432245732,-8402.08,0.0003863,6]
[314577585,1708432245744,-500.0,0.0003863,6]
[314577586,1708432245754,-557.75,0.0003863,6]
[314577587,1708432245763,-500.0,0.0003863,6]
[314577588,1708432245773,-500.0,0.0003863,6]
[314577589,1708432245783,-519.0,0.0003863,14]
[314577590,1708432245792,-500.0,0.00038664,2]
[314577591,1708432245801,-500.0,0.00038664,2]
[314577592,1708432245811,-500.0,0.00038664,2]
[314577593,1708432245822,-500.0,0.00038664,2]
[314577594,1708432245831,-500.0,0.00038664,2]
[314577595,1708432245840,-500.0,0.00038664,2]
[314577596,1708432245850,-500.0,0.00038664,2]
[314577597,1708432245861,-500.0,0.00038664,2]
[314577598,1708432245870,-500.0,0.00038664,2]
[314577599,1708432245879,-500.0,0.00038664,2]
[314577600,1708432245889,-500.0,0.00038664,2]
[314577601,1708432245899,-500.0,0.00038664,2]
[314577602,1708432245908,-500.0,0.00038664,2]
[314577603,1708432245917,-500.0,0.00038664,2]
[314577604,1708432245927,-500.0,0.00038664,2]
[314577605,1708432245936,-500.0,0.00038664,2]
[314577606,1708432245945,-500.0,0.00038664,2]
[314577607,1708432245955,-500.0,0.00038664,2]
[314577608,1708432245965,-500.0,0.00038664,2]